bitfinex-derivatives/quotes_BTCF0:USTF0_20250912
["timestamp","ask_amount","ask_price","bid_price","bid_amount"]
[1757652045054,0.14365899,115500.0,115490.0,1.22643103]
[1757652045661,0.14365899,115500.0,115490.0,0.43535103]
[1757652047961,0.14365899,115500.0,115490.0,0.004]
[1757652047962,0.87833371,115500.0,115490.0,0.004]
[1757652048169,0.53991902,115500.0,115490.0,0.004]
[1757652048366,0.28991902,115500.0,115490.0,0.004]
[1757652048667,0.14365899,115500.0,115490.0,0.3648]
[1757652048859,0.01978427,115500.0,115490.0,0.48867472]
[1757652049060,0.01978427,115500.0,115490.0,0.65867472]
[1757652049259,0.01978427,115500.0,115490.0,1.31867472]
[1757652049460,0.01978427,115500.0,115490.0,0.73867472]
[1757652049661,0.01978427,115500.0,115490.0,0.90867472]
[1757652049861,0.01978427,115500.0,115490.0,0.73867472]
[1757652050057,0.01978427,115500.0,115490.0,0.90867472]
[1757652050257,0.14365899,115500.0,115490.0,0.3648]
[1757652051663,0.14365899,115500.0,115490.0,1.15568]
[1757652052266,0.14365899,115500.0,115490.0,1.22491543]
[1757652052669,0.26753371,115500.0,115490.0,1.22491543]
[1757652052973,0.14365899,115500.0,115490.0,1.22491543]
[1757652054070,0.26753371,115500.0,115490.0,1.15564]
[1757652055166,0.14365899,115500.0,115490.0,1.15564]
[1757652055361,0.01978427,115500.0,115490.0,1.27951472]
[1757652055562,0.01978427,115500.0,115490.0,1.46951472]
[1757652055765,0.01978427,115500.0,115490.0,1.85951472]
[1757652056670,0.01978427,115500.0,115490.0,1.15564]
[1757652056871,0.01978427,115500.0,115490.0,1.50951472]
[1757652057271,0.01978427,115500.0,115490.0,1.38564]
[1757652057478,0.14365899,115500.0,115490.0,1.38564]
[1757652057866,0.14365899,115500.0,115490.0,1.45488927]
[1757652059070,0.14365899,115500.0,115490.0,0.3648]
[1757652059071,0.26753371,115500.0,115490.0,0.3648]
[1757652059276,0.26753371,115500.0,115490.0,1.15556]
[1757652059473,0.26753371,115500.0,115490.0,0.3648]
[1757652059671,0.27626561,115500.0,115490.0,0.3648]
[1757652060176,1.00220843,115500.0,115490.0,0.004]
[1757652060377,1.02427236,115500.0,115490.0,0.004]
[1757652060570,0.90039764,115500.0,115490.0,0.004]
[1757652060772,0.26753371,115500.0,115490.0,0.3648]
[1757652060967,0.26753371,115500.0,115490.0,0.004]
[1757652061176,0.28959715,115500.0,115490.0,0.004]
[1757652061374,0.26753371,115500.0,115490.0,0.3648]
[1757652061771,0.01978427,115500.0,115490.0,0.5448]
[1757652061980,0.12387472,115500.0,115490.0,0.3648]
[1757652063178,0.12387472,115510.0,115490.0,1.27939472]
[1757652063478,0.48467472,115520.0,115500.0,0.3608]
[1757652063678,0.12387472,115510.0,115500.0,0.3608]
[1757652063873,0.24774944,115510.0,115500.0,0.3608]
[1757652064073,0.60854944,115510.0,115490.0,1.15552]
[1757652064377,0.24774944,115500.0,115490.0,1.15552]
[1757652064574,0.24774944,115500.0,115490.0,1.15252]
[1757652064972,0.24774944,115500.0,115490.0,1.15152]
[1757652065181,0.24774944,115500.0,115480.0,1.15152]
[1757652065478,0.12387472,115490.0,115480.0,1.41342]
[1757652065780,0.12387472,115490.0,115480.0,0.6227]
[1757652065968,0.12387472,115490.0,115480.0,1.41342]
[1757652066674,0.12487472,115490.0,115480.0,1.41542]
[1757652066975,0.12487472,115490.0,115480.0,1.41942]
[1757652067483,0.001,115490.0,115480.0,1.71329472]
[1757652067682,0.001,115490.0,115480.0,1.96329472]
[1757652067884,0.001,115490.0,115480.0,1.79329472]
[1757652068069,0.001,115490.0,115480.0,1.87071264]
[1757652068274,0.001,115490.0,115480.0,1.79329472]
[1757652068487,0.001,115490.0,115480.0,1.80650472]
[1757652068780,0.12487472,115490.0,115480.0,1.80650472]
[1757652068982,0.12487472,115490.0,115480.0,1.68263]
[1757652069176,0.14739472,115490.0,115480.0,0.66488]
[1757652069371,0.14739472,115490.0,115480.0,1.45556]
[1757652069777,0.001,115490.0,115480.0,1.75943472]
[1757652070279,0.001,115490.0,115480.0,2.07943472]
[1757652070485,0.001,115490.0,115480.0,2.32943472]
[1757652071276,0.14739472,115490.0,115480.0,1.44366]
[1757652071680,0.14739472,115490.0,115480.0,1.19366]
[1757652077886,0.14739472,115490.0,115480.0,1.19362]
[1757652078388,0.22270056,115490.0,115480.0,1.19362]
[1757652078584,0.40834112,115490.0,115480.0,1.19362]
[1757652079175,0.22270056,115490.0,115480.0,1.19362]
[1757652079981,0.40834112,115490.0,115480.0,1.19362]
[1757652080481,0.22270056,115490.0,115480.0,1.19362]
[1757652081990,0.40834112,115490.0,115480.0,0.04218]
[1757652082288,0.40834112,115490.0,115480.0,0.02897]
[1757652082984,0.65834112,115490.0,115480.0,0.02897]
[1757652083184,1.01914112,115490.0,115480.0,0.006]
[1757652083384,1.01914112,115490.0,115480.0,0.02825]
[1757652083589,0.65834112,115490.0,115480.0,0.02825]
[1757652088391,0.40834112,115490.0,115480.0,0.40203]
[1757652088585,0.40834112,115490.0,115480.0,0.04123]
[1757652088787,0.40834112,115490.0,115480.0,0.02825]
[1757652088989,0.76914112,115490.0,115480.0,0.02825]
[1757652089792,1.01914112,115490.0,115480.0,0.006]
[1757652089990,1.01914112,115490.0,115480.0,0.02825]
[1757652090380,1.01914112,115490.0,115480.0,0.006]
[1757652091088,1.20478168,115490.0,115480.0,0.006]
[1757652091291,1.01914112,115490.0,115480.0,0.006]
[1757652091790,1.80974112,115490.0,115480.0,0.006]
[1757652095590,1.01914112,115490.0,115480.0,0.006]
[1757652095893,1.80970112,115490.0,115480.0,0.10566792]
[1757652097493,1.80970112,115490.0,115480.0,0.02825]
[1757652099399,1.55970112,115490.0,115480.0,0.006]
[1757652101596,1.55970112,115490.0,115480.0,0.02825]
[1757652102098,0.76914112,115490.0,115480.0,0.02825]
[1757652102296,1.55970112,115490.0,115480.0,0.02825]
[1757652107898,1.55970112,115490.0,115480.0,0.006]
[1757652121615,1.74534168,115490.0,115480.0,0.006]
[1757652122409,1.99534168,115490.0,115480.0,0.006]
[1757652123716,1.20478168,115490.0,115480.0,0.006]
[1757652123915,1.80954112,115490.0,115480.0,0.006]
[1757652124810,0.58350056,115490.0,115480.0,0.02932]
[1757652125115,1.55954112,115490.0,115480.0,0.02932]
[1757652125514,0.76914112,115490.0,115480.0,0.02932]
[1757652125812,1.55954112,115490.0,115480.0,0.02932]
[1757652127116,1.19874112,115490.0,115480.0,0.02932]
[1757652127415,1.19870112,115490.0,115480.0,0.02932]
[1757652128218,0.40834112,115490.0,115480.0,0.02932]
[1757652128420,1.19870112,115490.0,115480.0,0.02932]
[1757652128813,0.22270056,115490.0,115480.0,0.02932]
[1757652129006,0.22270056,115490.0,115480.0,0.29218]
[1757652129211,0.99952056,115490.0,115480.0,0.29218]
[1757652130214,1.01237056,115490.0,115480.0,0.29218]
[1757652130725,0.99952056,115490.0,115480.0,0.36959792]
[1757652131714,0.81388,115490.0,115480.0,0.36959792]
[1757652132019,0.20916056,115490.0,115480.0,0.65298]
[1757652132708,0.40765112,115490.0,115480.0,0.64012]
[1757652133015,0.40765112,115490.0,115480.0,0.27932]
[1757652134914,0.03637,115490.0,115480.0,0.02932]
[1757652135217,0.40765112,115490.0,115480.0,0.02932]
[1757652135614,0.76845112,115490.0,115480.0,0.02932]
[1757652140620,0.64474302,115490.0,115480.0,0.02932]
[1757652142516,0.89474302,115490.0,115480.0,0.006]
[1757652142818,1.68490302,115490.0,115480.0,0.02866]
[1757652143528,0.89474302,115490.0,115480.0,0.02866]
[1757652143910,1.31107651,115490.0,115480.0,0.02866]
[1757652144423,0.52095651,115490.0,115480.0,0.02866]
[1757652144621,1.31107651,115490.0,115480.0,0.02866]
[1757652144817,0.52095651,115490.0,115480.0,0.02866]
[1757652145121,1.31107651,115490.0,115480.0,0.02866]
[1757652147325,0.02352,115490.0,115480.0,0.77701651]
[1757652147517,0.14730651,115490.0,115480.0,0.65323]
[1757652147825,0.14730651,115490.0,115480.0,0.73064792]
[1757652148123,0.02352,115490.0,115480.0,0.73064792]
[1757652148426,0.14730651,115490.0,115480.0,0.73064792]
[1757652149524,0.14730651,115490.0,115480.0,0.65323]
[1757652154130,0.14730651,115490.0,115480.0,0.73064792]
[1757652155126,0.001,115490.0,115480.0,1.46080302]
[1757652155325,0.001,115490.0,115480.0,1.33701651]
[1757652155522,0.001,115490.0,115480.0,0.77701651]
[1757652155725,0.001,115490.0,115480.0,0.97701651]
[1757652156222,0.001,115490.0,115480.0,1.00701651]
[1757652156529,0.001,115490.0,115480.0,1.37701651]
[1757652158929,0.001,115490.0,115480.0,1.44454057]
[1757652159422,0.001,115490.0,115480.0,1.19454057]
[1757652159627,0.001,115490.0,115480.0,1.07075406]
[1757652159828,0.001,115490.0,115480.0,1.19454057]
[1757652160223,0.001,115490.0,115480.0,1.45644057]
[1757652162533,0.001,115490.0,115480.0,1.54300627]
[1757652163119,0.001,115490.0,115480.0,1.62042419]
[1757652163523,0.001,115490.0,115480.0,1.53385849]
[1757652164131,0.001,115490.0,115480.0,1.41007198]
[1757652164431,0.001,115490.0,115480.0,1.45644057]
[1757652164831,0.001,115490.0,115480.0,1.58022708]
[1757652166330,0.001,115490.0,115480.0,1.66679278]
[1757652166731,0.001,115490.0,115480.0,1.58022708]
[1757652168826,0.001,115490.0,115480.0,2.37006708]
[1757652169025,0.001,115490.0,115480.0,1.87628057]
[1757652170023,0.001,115490.0,115480.0,2.16628057]
[1757652170430,0.001,115490.0,115480.0,2.29006708]
[1757652171836,0.001,115490.0,115480.0,2.36754016]
[1757652175240,0.001,115490.0,115480.0,2.45410606]
[1757652176035,0.001,115490.0,115480.0,2.11996714]
[1757652176341,0.001,115490.0,115480.0,1.84754016]
[1757652176642,0.001,115490.0,115480.0,2.41754016]
[1757652178343,0.001,115490.0,115480.0,2.34006708]
[1757652178842,0.001,115490.0,115480.0,2.21628057]
[1757652179143,0.001,115490.0,115480.0,2.29372467]
[1757652179844,0.001,115490.0,115480.0,2.41751118]
[1757652180843,0.001,115490.0,115480.0,2.50407708]
[1757652181848,0.001,115490.0,115480.0,2.42663298]
[1757652182851,0.001,115490.0,115480.0,2.34006708]
[1757652184149,0.001,115490.0,115480.0,2.44886991]
[1757652184548,0.001,115490.0,115480.0,2.34006708]
[1757652187949,0.001,115490.0,115480.0,2.14006708]
[1757652188952,0.001,115490.0,115480.0,2.24886991]
[1757652189341,0.001,115490.0,115480.0,2.13982708]
[1757652189852,0.001,115490.0,115480.0,2.09350125]
[1757652190052,0.001,115490.0,115480.0,1.96971474]
[1757652190253,0.001,115490.0,115480.0,1.89225406]
[1757652190453,0.001,115490.0,115480.0,2.01604057]
[1757652190850,0.001,115490.0,115480.0,2.09350725]
[1757652192450,0.39676651,115490.0,115480.0,0.81012074]
[1757652192648,0.40956651,115490.0,115480.0,0.81012074]
[1757652193255,0.40956651,115490.0,115480.0,1.59968074]
[1757652194156,0.39676651,115490.0,115480.0,1.59968074]
[1757652194554,0.39676651,115490.0,115480.0,1.52221406]
[1757652194756,0.39676651,115490.0,115480.0,1.63101689]
[1757652195463,0.39676651,115490.0,115480.0,1.70854293]
[1757652195758,0.39676651,115490.0,115480.0,1.63101689]
[1757652195945,0.39676651,115490.0,115480.0,1.26031406]
[1757652196956,0.40956651,115490.0,115480.0,0.38946]
[1757652197152,0.89415302,115490.0,115480.0,0.08354503]
[1757652197553,0.89415302,115490.0,115480.0,0.19237312]
[1757652198059,0.89415302,115490.0,115480.0,0.08357029]
[1757652198765,0.96416396,115490.0,115480.0,0.08357029]
[1757652199166,1.75368396,115490.0,115480.0,0.08357029]
[1757652200062,0.96416396,115490.0,115480.0,0.006]
[1757652200262,1.75368396,115490.0,115480.0,0.10495029]
[1757652200462,1.87747586,115490.0,115480.0,0.02738]
[1757652202458,1.87747586,115490.0,115480.0,0.10495029]
[1757652203769,1.87747586,115490.0,115480.0,0.08357029]
[1757652204065,1.87747586,115490.0,115480.0,0.10521029]
[1757652204361,1.08795586,115490.0,115480.0,0.10521029]
[1757652204563,1.87747586,115490.0,115480.0,0.10521029]
[1757652205467,1.87747586,115490.0,115480.0,0.08357029]
[1757652206368,1.87751586,115490.0,115480.0,0.08357029]
[1757652206564,1.08795586,115490.0,115480.0,0.08357029]
[1757652206870,1.87747586,115490.0,115480.0,0.08357029]
[1757652207164,2.06315832,115490.0,115480.0,0.08357029]
[1757652209461,2.06315832,115490.0,115480.0,0.006]
[1757652209660,2.07182503,115490.0,115480.0,0.006]
[1757652209865,2.07182503,115490.0,115480.0,0.08357029]
[1757652214264,0.46659094,115490.0,115480.0,0.10521029]
[1757652214469,0.02298,115490.0,115480.0,0.72914029]
[1757652214669,0.20866246,115490.0,115480.0,0.72914029]
[1757652214866,0.99818246,115490.0,115480.0,0.72906337]
[1757652215268,0.99818246,115490.0,115480.0,0.91474583]
[1757652215663,0.99818246,115490.0,115480.0,0.83725246]
[1757652215969,0.99818246,115490.0,115480.0,0.91475351]
[1757652216656,0.20866246,115490.0,115480.0,0.72907105]
[1757652216862,0.20866246,115490.0,115480.0,0.91475351]
[1757652218072,0.99818246,115490.0,115480.0,0.91475351]
[1757652218669,0.20866246,115490.0,115480.0,0.91475351]
[1757652219371,0.20866246,115490.0,115480.0,0.66475351]
[1757652219372,0.001,115490.0,115480.0,0.66475351]
[1757652219573,0.18668246,115490.0,115480.0,0.58725246]
[1757652219766,0.18668246,115490.0,115480.0,0.69605529]
[1757652219965,0.001,115490.0,115480.0,0.69605529]
[1757652220166,0.18668246,115490.0,115480.0,0.69605529]
[1757652220666,0.20781246,115490.0,115480.0,0.69605529]
[1757652221771,0.20781246,115490.0,115480.0,0.77360049]
[1757652222275,0.20781246,115490.0,115480.0,0.66479766]
[1757652225074,0.20781246,115490.0,115480.0,0.4791152]
[1757652225375,0.20781246,115490.0,115480.0,0.58725246]
[1757652225769,0.22161246,115490.0,115480.0,0.38844]
[1757652225975,0.22161246,115490.0,115480.0,0.46601766]
[1757652226171,0.22161246,115490.0,115480.0,0.10521766]
[1757652226475,0.22161246,115490.0,115480.0,0.46601766]
[1757652226869,0.22161246,115490.0,115480.0,0.10521766]
[1757652228376,0.22161246,115490.0,115480.0,0.11834766]
[1757652230578,0.22161246,115490.0,115480.0,0.10521766]
[1757652230876,0.40729492,115490.0,115480.0,0.10521766]
[1757652231076,0.65729492,115490.0,115480.0,0.10521766]
[1757652235773,1.44661492,115490.0,115480.0,0.10521766]
[1757652236081,0.65729492,115490.0,115480.0,0.10521766]
[1757652236290,1.44661492,115490.0,115480.0,0.10521766]
[1757652243287,1.44657492,115490.0,115480.0,0.10521766]
[1757652245392,1.07521,115490.0,115480.0,0.10521766]
[1757652245691,1.44657492,115490.0,115480.0,0.10521766]
[1757652246086,1.44657492,115490.0,115480.0,0.02764]
[1757652249191,0.65729492,115490.0,115480.0,0.02764]
[1757652249491,1.44653492,115490.0,115480.0,0.02764]
[1757652250293,1.44649492,115490.0,115480.0,0.02764]
[1757652252294,1.80729492,115490.0,115480.0,0.02764]
[1757652252698,1.80729492,115490.0,115480.0,0.006]
[1757652253292,1.80729492,115490.0,115480.0,0.10581766]
[1757652255490,1.80729492,115490.0,115480.0,0.10181766]
[1757652255791,1.80729492,115490.0,115480.0,0.10481766]
[1757652256287,1.80729492,115490.0,115480.0,0.08257766]
[1757652257299,1.55729492,115490.0,115480.0,0.08257766]
[1757652257501,1.19649492,115490.0,115480.0,0.10481766]
[1757652258295,1.19649492,115490.0,115480.0,0.02724]
[1757652258496,0.40729492,115490.0,115480.0,0.02724]
[1757652258804,1.19645492,115490.0,115480.0,0.02724]
[1757652259199,1.19645492,115490.0,115480.0,0.10490273]
[1757652259500,1.19645492,115490.0,115480.0,0.02724]
[1757652260399,1.0726525,115490.0,115480.0,0.02724]
[1757652264006,0.02218,115490.0,115480.0,0.04024]
[1757652264300,0.02382,115490.0,115480.0,1.02247373]
[1757652264498,0.2844525,115490.0,115480.0,0.13604283]
[1757652264698,0.16067125,115490.0,115480.0,0.49684283]
[1757652264895,0.16067125,115490.0,115480.0,0.50984283]
[1757652265102,0.16067125,115490.0,115480.0,0.75984283]
[1757652265103,0.14760125,115490.0,115480.0,0.75984283]
[1757652266401,0.14760125,115490.0,115480.0,0.83749732]
[1757652266605,0.14760125,115490.0,115480.0,0.72869449]
[1757652272807,0.14760125,115490.0,115480.0,0.65104]
[1757652275308,0.14760125,115490.0,115480.0,0.72869449]
[1757652275509,0.14760125,115490.0,115480.0,0.65104]
[1757652276205,0.14760125,115490.0,115480.0,0.60104]
[1757652276206,0.16067125,115490.0,115480.0,0.60104]
[1757652276412,0.16067125,115490.0,115480.0,0.62292]
[1757652277911,0.16067125,115490.0,115480.0,0.70057449]
[1757652279312,0.16067125,115490.0,115480.0,0.45057449]
[1757652280114,0.16067125,115490.0,115480.0,0.37292]
[1757652280711,0.16067125,115490.0,115480.0,0.35992]
[1757652284108,0.16067125,115490.0,115480.0,0.43757449]
[1757652284918,0.16067125,115490.0,115480.0,0.35992]
[1757652285807,0.12483125,115490.0,115480.0,0.35992]
[1757652286514,0.14760125,115490.0,115480.0,0.35992]
[1757652287012,0.14760125,115490.0,115480.0,0.46872283]
[1757652287521,0.14760125,115490.0,115480.0,0.35992]
[1757652287907,0.16067125,115490.0,115480.0,0.02188]
[1757652288211,0.2844525,115490.0,115480.0,0.09952719]
[1757652288411,0.8952525,115490.0,115480.0,0.09952719]
[1757652288608,0.03584,115480.0,115470.0,0.83103002]
[1757652288818,0.2834025,115480.0,115470.0,0.75338283]
[1757652289212,0.2834025,115480.0,115470.0,0.39258283]
[1757652289717,0.2844025,115480.0,115470.0,0.39658283]
[1757652289911,0.2844025,115480.0,115470.0,0.28778]
[1757652291618,0.2844025,115480.0,115470.0,0.64858]
[1757652293007,0.2844025,115480.0,115470.0,0.28778]
[1757652293212,0.2844025,115480.0,115470.0,0.64858]
[1757652293718,0.2844025,115480.0,115470.0,0.38668]
[1757652295019,0.2844025,115480.0,115470.0,0.49548283]
[1757652295221,0.2844025,115480.0,115470.0,0.57313675]
[1757652295418,0.2844025,115480.0,115470.0,0.46433392]
[1757652300718,0.2844025,115480.0,115470.0,0.38668]
[1757652301024,0.2844025,115480.0,115470.0,0.11280283]
[1757652301522,0.2844025,115480.0,115470.0,0.13447283]
[1757652301817,0.2844025,115480.0,115470.0,0.11280283]
[1757652302122,0.2844025,115480.0,115470.0,0.13447283]
[1757652302418,0.2844025,115480.0,115470.0,0.21206715]
[1757652302823,0.2844025,115480.0,115470.0,0.10326432]
[1757652303325,0.2844025,115480.0,115470.0,0.02567]
[1757652303524,0.2844025,115480.0,115470.0,0.10326047]
[1757652304820,0.2844025,115480.0,115470.0,0.02567]
[1757652307020,0.2844025,115480.0,115470.0,0.10325629]
[1757652311627,0.2844025,115480.0,115470.0,0.13447283]
[1757652311827,0.2844025,115480.0,115470.0,0.2120643]
[1757652312128,0.03684,115480.0,115470.0,0.02567]
[1757652312326,0.2844025,115480.0,115470.0,0.02567]
[1757652312929,0.2844025,115480.0,115470.0,0.13447283]
[1757652313231,0.2844025,115480.0,115470.0,0.11280283]
[1757652313433,1.01898375,115480.0,115470.0,0.11280283]
[1757652313624,1.03902765,115480.0,115470.0,0.08159892]
[1757652314735,1.03902765,115480.0,115470.0,0.004]
[1757652315633,1.03902765,115480.0,115470.0,0.08159892]
[1757652317026,0.03569,115460.0,115450.0,0.46960283]
[1757652317332,0.94839125,115460.0,115450.0,0.3608]
[1757652317633,0.94839125,115460.0,115450.0,0.4694368]
[1757652317836,0.94839125,115460.0,115450.0,0.1086368]
[1757652318428,0.94939125,115460.0,115450.0,0.1116368]
[1757652319221,0.94939125,115460.0,115450.0,0.1156368]
[1757652319533,0.95039125,115460.0,115450.0,0.1156368]
[1757652319734,0.94939125,115460.0,115450.0,0.1116368]
[1757652320031,0.95039125,115460.0,115450.0,0.1146368]
[1757652321035,1.31119125,115460.0,115450.0,0.1146368]
[1757652322329,1.18741,115460.0,115450.0,0.1146368]
[1757652322534,1.74473452,115460.0,115450.0,0.1146368]
[1757652327238,1.99473452,115460.0,115450.0,0.006]
[1757652329330,0.03503,115440.0,115430.0,0.37832957]
[1757652329530,1.19549968,115440.0,115430.0,0.37832957]
[1757652329931,1.38127452,115440.0,115430.0,0.37832957]
[1757652330334,1.38127452,115440.0,115430.0,0.40012957]
[1757652330533,0.59335452,115440.0,115430.0,0.40512957]
[1757652330735,1.38227452,115440.0,115430.0,0.40512957]
[1757652331033,1.19749968,115440.0,115430.0,0.40512957]
[1757652332540,1.19749968,115440.0,115430.0,0.12192456]
[1757652332839,1.19749968,115440.0,115430.0,0.04432957]
[1757652333135,1.19749968,115440.0,115430.0,0.02252957]
[1757652333928,1.38327452,115440.0,115430.0,0.02252957]
[1757652334132,1.38327452,115440.0,115430.0,0.04432957]
[1757652334643,0.59435452,115440.0,115430.0,0.04432957]
[1757652334940,1.38327452,115440.0,115430.0,0.04432957]
[1757652337845,1.38327452,115440.0,115430.0,0.02252957]
[1757652338234,0.59435452,115440.0,115430.0,0.02252957]
[1757652338541,1.38327452,115440.0,115430.0,0.02252957]
[1757652339137,0.59435452,115440.0,115430.0,0.02252957]
[1757652339436,1.38331452,115440.0,115430.0,0.02252957]
[1757652339636,1.38327452,115440.0,115430.0,0.04432957]
[1757652340429,0.59435452,115440.0,115430.0,0.04432957]
[1757652340634,1.38327452,115440.0,115430.0,0.04432957]
[1757652340935,1.19749968,115440.0,115430.0,0.04432957]
[1757652343235,1.19753968,115440.0,115430.0,0.04432957]
[1757652343436,0.40857968,115440.0,115430.0,0.04432957]
[1757652343733,1.19753968,115440.0,115430.0,0.04432957]
[1757652344441,1.19753968,115440.0,115430.0,0.40512957]
[1757652344641,0.22280484,115440.0,115430.0,0.65512957]
[1757652344842,0.40857968,115440.0,115430.0,0.82512957]
[1757652345631,0.40857968,115440.0,115430.0,0.65512957]
[1757652345829,0.40857968,115440.0,115430.0,0.81512957]
[1757652346646,0.40857968,115440.0,115430.0,0.65512957]
[1757652354243,0.40857968,115440.0,115430.0,0.40512957]
[1757652354842,0.40857968,115440.0,115430.0,0.04432957]
[1757652355748,0.40857968,115440.0,115430.0,0.02252957]
[1757652356048,0.84435452,115440.0,115430.0,0.02252957]
[1757652357254,0.84435452,115440.0,115430.0,0.10012456]
[1757652359256,0.84335452,115440.0,115430.0,0.10012456]
[1757652359449,0.84435452,115440.0,115430.0,0.10012456]
[1757652359757,0.84435452,115440.0,115430.0,0.08259499]
[1757652359948,1.20415452,115440.0,115430.0,0.07759499]
[1757652360256,1.20515452,115440.0,115430.0,0.002]
[1757652360847,1.20515452,115440.0,115420.0,0.44708327]
[1757652361154,0.40669968,115430.0,115420.0,0.47040327]
[1757652361355,1.19941968,115430.0,115420.0,0.47040327]
[1757652361950,1.19925968,115430.0,115420.0,0.47040327]
[1757652363247,1.19925968,115430.0,115420.0,0.47240327]
[1757652363653,1.20025968,115430.0,115420.0,0.47240327]
[1757652363858,1.20125968,115430.0,115420.0,0.47340327]
[1757652366452,1.20125968,115430.0,115420.0,0.39580828]
[1757652369259,1.20125968,115430.0,115420.0,0.47340327]
[1757652370058,0.40869968,115430.0,115420.0,0.47340327]
[1757652370359,0.40869968,115430.0,115420.0,0.55580828]
[1757652370560,0.40869968,115430.0,115420.0,0.39580828]
[1757652371959,0.40869968,115430.0,115420.0,0.47340327]
[1757652373356,0.40869968,115430.0,115420.0,0.46440327]
[1757652374261,0.40869968,115430.0,115420.0,0.38680828]
[1757652375662,0.40869968,115430.0,115420.0,0.39548986]
[1757652380665,0.40869968,115430.0,115420.0,0.47308485]
[1757652381659,0.40869968,115430.0,115420.0,0.39548986]
[1757652383369,0.40869968,115430.0,115420.0,0.47308485]
[1757652383561,0.03715,115430.0,115420.0,0.47308485]
[1757652383865,0.40869968,115430.0,115420.0,0.47308485]
[1757652384461,0.16103708,115430.0,115420.0,0.47308485]
[1757652385063,0.03715,115430.0,115420.0,0.65308485]
[1757652385255,0.16103708,115430.0,115420.0,0.57548986]
[1757652386375,0.03715,115430.0,115420.0,0.56548986]
[1757652386562,0.16103708,115430.0,115420.0,0.55548986]
[1757652387464,0.16103708,115430.0,115420.0,0.39548986]
[1757652388770,0.16103708,115430.0,115420.0,0.50412666]
[1757652389371,0.16103708,115430.0,115420.0,0.68412666]
[1757652389672,0.002,115430.0,115420.0,1.01485374]
[1757652389866,0.002,115430.0,115420.0,1.38485374]
[1757652390073,0.12588708,115430.0,115420.0,1.38485374]
[1757652390272,0.12588708,115430.0,115420.0,1.26096666]
[1757652390469,0.12588708,115430.0,115420.0,1.38485374]
[1757652391071,0.12588708,115430.0,115420.0,1.27621694]
[1757652392676,0.002,115430.0,115420.0,1.27621694]
[1757652393176,0.12588708,115430.0,115420.0,1.27621694]
[1757652393975,0.12588708,115430.0,115420.0,0.93621694]
[1757652394975,0.14782708,115430.0,115420.0,0.77621694]
[1757652395177,0.14782708,115430.0,115420.0,1.02384899]
[1757652395873,0.14782708,115430.0,115420.0,0.89996191]
[1757652396069,0.14782708,115430.0,115420.0,1.03384899]
[1757652396270,0.02394,115430.0,115420.0,1.03384899]
[1757652396473,0.14782708,115430.0,115420.0,1.03384899]
[1757652396669,0.002,115430.0,115420.0,1.57773607]
[1757652397478,0.002,115430.0,115420.0,2.37049607]
[1757652398178,0.002,115430.0,115420.0,2.29286402]
[1757652399382,0.002,115430.0,115420.0,2.04286402]
[1757652400580,0.002,115430.0,115420.0,2.41338458]
[1757652401782,0.002,115430.0,115420.0,2.49999408]
[1757652402275,0.002,115430.0,115420.0,2.16561042]
[1757652402480,0.002,115430.0,115420.0,2.41338458]
[1757652407883,0.002,115430.0,115420.0,2.30476402]
[1757652409779,0.002,115430.0,115420.0,2.41333642]
[1757652411888,0.002,115430.0,115420.0,2.05284814]
[1757652412089,0.002,115430.0,115420.0,2.77444814]
[1757652412489,0.002,115430.0,115420.0,2.66587574]
[1757652413090,0.002,115430.0,115420.0,2.66495574]
[1757652414691,0.002,115430.0,115420.0,1.87311574]
[1757652415284,0.002,115430.0,115420.0,2.41682158]
[1757652415490,0.002,115430.0,115420.0,2.54070866]
[1757652415790,0.002,115430.0,115420.0,2.66459574]
[1757652416586,0.002,115430.0,115420.0,1.62534158]
[1757652416789,0.002,115430.0,115420.0,2.08857898]
[1757652416790,0.13983708,115430.0,115420.0,2.08857898]
[1757652416979,0.13983708,115430.0,115420.0,1.12709898]
[1757652417185,0.13983708,115430.0,115420.0,1.91877898]
[1757652417790,0.13983708,115430.0,115420.0,1.81018158]
[1757652418292,0.13983708,115430.0,115420.0,1.54828158]
[1757652418790,0.01595,115430.0,115420.0,1.54828158]
[1757652418983,0.13983708,115430.0,115420.0,1.69828158]
[1757652419292,0.13983708,115430.0,115420.0,1.77586579]
[1757652420286,0.01595,115430.0,115420.0,1.77586579]
[1757652420487,0.13983708,115430.0,115420.0,1.77586579]
[1757652420994,0.01595,115430.0,115420.0,1.77586579]
[1757652421194,0.13983708,115430.0,115420.0,1.78270579]
[1757652421890,0.13983708,115430.0,115420.0,1.81270579]
[1757652422194,0.13983708,115430.0,115420.0,1.79270579]
[1757652422396,0.13983708,115430.0,115420.0,1.62586579]
[1757652422592,0.16239708,115430.0,115420.0,1.62566579]
[1757652422793,0.16239708,115430.0,115420.0,1.54808158]
[1757652424295,0.16239708,115430.0,115420.0,0.75660158]
[1757652424499,0.16239708,115430.0,115420.0,1.54812158]
[1757652425608,0.16239708,115430.0,115420.0,1.71812158]
[1757652426310,0.16239708,115430.0,115420.0,1.72496158]
[1757652428003,0.14844708,115430.0,115420.0,1.72496158]
[1757652428203,0.12588708,115430.0,115420.0,1.84884866]
[1757652428812,0.12588708,115430.0,115420.0,1.72496158]
[1757652429110,0.12588708,115430.0,115420.0,1.84884866]
[1757652429711,0.12588708,115430.0,115420.0,1.72496158]
[1757652430504,0.12588708,115430.0,115420.0,1.83355898]
[1757652431011,0.12588708,115430.0,115420.0,1.11195898]
[1757652431212,0.12588708,115430.0,115420.0,1.47275898]
[1757652431804,0.12588708,115430.0,115420.0,1.36416158]
[1757652433211,0.12588708,115430.0,115420.0,1.48804866]
[1757652434011,0.12588708,115430.0,115420.0,1.36416158]
[1757652434212,0.12588708,115430.0,115420.0,1.48804866]
[1757652435209,0.002,115430.0,115420.0,1.83804866]
[1757652435407,0.12588708,115430.0,115420.0,1.71416158]
[1757652435607,0.12588708,115430.0,115420.0,1.83804866]
[1757652436306,0.11180736,115430.0,115420.0,1.83804866]
[1757652436613,0.12388708,115430.0,115420.0,1.71416158]
[1757652436912,0.12388708,115430.0,115420.0,1.83804866]
[1757652438412,0.12388708,115430.0,115420.0,1.70804866]
[1757652439701,0.13783708,115440.0,115420.0,1.70804866]
[1757652439902,0.13783708,115440.0,115430.0,0.4920538]
[1757652440107,0.28428416,115440.0,115430.0,0.4920538]
[1757652440615,0.53428416,115440.0,115430.0,0.4920538]
[1757652440812,0.53428416,115440.0,115430.0,0.4693638]
[1757652441008,0.53428416,115440.0,115430.0,0.4920538]
[1757652441210,0.53528416,115440.0,115430.0,0.4950538]